bitfinex-derivatives/quotes_ETHF0:USTF0_20260125
["timestamp","ask_amount","ask_price","bid_price","bid_amount"]
[1769329176636,3.90796866,2945.1,2944.0,0.78451524]
[1769329176837,3.90796866,2945.0,2944.0,0.78451524]
[1769329177037,1.03710826,2945.4,2944.0,0.78451524]
[1769329177241,3.91016159,2945.3,2944.0,0.75048347]
[1769329177535,3.91016159,2945.2,2944.0,0.75048347]
[1769329177738,3.91016159,2945.1,2944.0,0.75048347]
[1769329177946,3.91016159,2945.0,2944.0,0.75048347]
[1769329178141,1.03710826,2945.4,2944.0,0.75048347]
[1769329178334,3.91044115,2945.3,2944.0,0.75048347]
[1769329178533,3.91044115,2945.2,2944.0,0.75048347]
[1769329178735,3.91044115,2945.1,2944.0,0.75048347]
[1769329178938,3.91044115,2945.0,2944.0,0.75048347]
[1769329179243,1.03710826,2945.4,2944.0,0.75048347]
[1769329179443,3.91044052,2945.3,2944.0,0.75048347]
[1769329179741,3.91044052,2945.2,2944.0,0.75048347]
[1769329179941,3.91044052,2945.1,2944.0,0.75048347]
[1769329180143,3.91044052,2945.0,2944.0,0.75048347]
[1769329180441,1.03710826,2945.4,2944.0,0.75048347]
[1769329180642,3.91044057,2945.3,2944.0,0.75048347]
[1769329180841,3.91044057,2945.2,2944.0,0.75048347]
[1769329181038,3.91044057,2945.1,2944.0,0.75048347]
[1769329181238,1.03710826,2945.4,2944.0,0.75048347]
[1769329181239,3.91044057,2945.0,2944.0,0.75048347]
[1769329181439,1.03710826,2945.4,2944.0,0.75048347]
[1769329181639,3.91044391,2945.3,2944.0,0.75048347]
[1769329181839,1.03710826,2945.4,2944.0,0.75048347]
[1769329181840,3.91044391,2945.2,2944.0,0.75048347]
[1769329182040,3.91044391,2945.1,2944.0,0.75048347]
[1769329182237,3.91044391,2945.0,2944.0,0.75048347]
[1769329182436,1.03710826,2945.4,2944.0,0.75048347]
[1769329182639,3.91044547,2945.3,2944.0,0.75048347]
[1769329182839,3.91044547,2945.2,2944.0,0.75048347]
[1769329183141,3.91044547,2945.1,2944.0,0.75048347]
[1769329183339,3.91044547,2945.0,2944.0,0.75048347]
[1769329183540,1.03710826,2945.4,2944.0,0.75048347]
[1769329183742,3.91044791,2945.3,2944.0,0.75048347]
[1769329183942,3.91044791,2945.2,2944.0,0.75048347]
[1769329184142,3.91044791,2945.1,2944.0,0.75048347]
[1769329184445,3.91044791,2945.0,2944.0,0.75048347]
[1769329184652,1.03710826,2945.4,2944.0,0.75048347]
[1769329184943,3.91045071,2945.3,2944.0,0.75048347]
[1769329185145,3.91045071,2945.2,2944.0,0.75048347]
[1769329185344,3.91045071,2945.1,2944.0,0.75048347]
[1769329185645,1.03710826,2945.4,2944.0,0.75048347]
[1769329185646,3.91045071,2945.0,2944.0,0.75048347]
[1769329185845,1.03710826,2945.4,2944.0,0.75048347]
[1769329186144,3.91045395,2945.3,2944.0,0.75048347]
[1769329186334,3.91045395,2945.2,2944.0,0.75048347]
[1769329186535,3.91045395,2945.1,2944.0,0.75048347]
[1769329186739,3.91045395,2945.0,2944.0,0.75048347]
[1769329186939,1.03710826,2945.4,2944.0,0.75048347]
[1769329187146,3.9104582,2945.3,2944.0,0.89901732]
[1769329187339,3.9104582,2945.2,2944.0,0.89901732]
[1769329187540,3.9104582,2945.1,2944.0,0.89901732]
[1769329187741,3.9104582,2945.0,2944.0,0.89901732]
[1769329187939,1.03710826,2945.4,2944.0,0.89901732]
[1769329188142,3.91046446,2945.3,2944.0,0.89901732]
[1769329188347,3.91046446,2945.2,2944.0,0.89901732]
[1769329188645,3.91046446,2945.1,2944.0,0.89901732]
[1769329188846,3.91047201,2945.0,2944.0,0.89901732]
[1769329189152,1.03710826,2945.4,2944.0,0.89901732]
[1769329189352,3.9233355,2945.3,2944.0,0.89901732]
[1769329189647,3.9233355,2945.2,2944.0,0.89901732]
[1769329189853,3.9233355,2945.1,2944.0,0.89901732]
[1769329190051,3.9233355,2945.0,2944.0,0.89901732]
[1769329190253,1.03710826,2945.4,2944.0,0.89901732]
[1769329190554,3.92334712,2945.3,2944.0,0.89901732]
[1769329190757,3.92334712,2945.2,2944.0,0.89901732]
[1769329191051,3.92334712,2945.1,2944.0,0.89901732]
[1769329191252,3.92334712,2945.0,2944.0,0.89901732]
[1769329191454,1.03710826,2945.4,2944.0,0.89901732]
[1769329191753,3.92335492,2945.3,2944.0,0.89901732]
[1769329191949,3.92335492,2945.2,2944.0,0.89901732]
[1769329192150,3.92335492,2945.1,2944.0,0.89901732]
[1769329192353,3.92335492,2945.0,2944.0,0.89901732]
[1769329192553,1.03710826,2945.4,2944.0,0.89901732]
[1769329192754,3.92336438,2945.3,2944.0,0.89901732]
[1769329192954,3.92336438,2945.2,2944.0,0.89901732]
[1769329193157,3.92336438,2945.1,2944.0,0.89901732]
[1769329193362,3.92336438,2945.0,2944.0,0.89901732]
[1769329193552,1.03710826,2945.4,2944.0,0.89901732]
[1769329193852,3.92337746,2945.3,2944.0,0.89901732]
[1769329194051,3.92337746,2945.2,2944.0,0.89901732]
[1769329194248,3.92337746,2945.1,2944.0,0.89901732]
[1769329194452,3.92337746,2945.0,2944.0,0.89901732]
[1769329194751,1.03710826,2945.4,2944.0,0.89901732]
[1769329194952,3.92340731,2945.3,2944.0,0.89901732]
[1769329195163,3.92340731,2945.2,2944.0,0.89901732]
[1769329195354,3.92340731,2945.1,2944.0,0.89901732]
[1769329195554,3.92340731,2945.0,2944.0,0.89901732]
[1769329195855,1.03710826,2945.4,2944.0,0.89901732]
[1769329196057,3.92340689,2945.3,2944.0,0.89901732]
[1769329196364,3.92340689,2945.2,2944.0,0.89901732]
[1769329196565,3.92340689,2945.1,2944.0,0.89901732]
[1769329196758,3.92340689,2945.0,2944.0,0.89901732]
[1769329197056,1.03710826,2945.4,2944.0,0.89901732]
[1769329197266,3.92340717,2945.3,2944.0,0.89901732]
[1769329197462,1.03710826,2945.4,2944.0,0.89901732]
[1769329197463,3.92340717,2945.2,2944.0,0.89901732]
[1769329197663,3.92340717,2945.1,2944.0,0.89901732]
[1769329197964,3.92340717,2945.0,2944.0,0.89901732]
[1769329198154,1.03710826,2945.4,2944.0,0.89901732]
[1769329198353,0.95454524,2945.2,2943.9,0.00303888]
[1769329198564,3.92333023,2945.1,2943.9,0.00303888]
[1769329210574,0.78451524,2945.0,2943.9,0.00303888]
[1769329210761,5.91833023,2944.9,2943.9,0.00303888]
[1769329210966,3.92333023,2944.8,2943.9,0.00303888]
[1769329227185,1.995,2944.9,2943.9,0.00303888]
[1769329227385,3.99735665,2944.8,2943.9,0.00303888]
[1769329227588,3.99735665,2944.7,2943.9,0.00303888]
[1769329227890,3.99735665,2944.6,2943.9,0.00303888]
[1769329228187,1.995,2944.9,2943.9,0.00303888]
[1769329228386,3.99811465,2944.8,2943.9,0.00303888]
[1769329228586,3.99811465,2944.7,2943.9,0.00303888]
[1769329228787,3.99811465,2944.6,2943.9,0.00303888]
[1769329228988,1.995,2944.9,2943.9,0.00303888]
[1769329229190,3.99811465,2944.8,2943.9,0.00303888]
[1769329229389,3.99811465,2944.7,2943.9,0.00303888]
[1769329229589,3.99811465,2944.6,2943.9,0.00303888]
[1769329229790,1.995,2944.9,2943.9,0.00303888]
[1769329229985,3.99822426,2944.8,2943.9,0.00303888]
[1769329230187,3.99822426,2944.7,2943.9,0.00303888]
[1769329230392,3.99822426,2944.6,2943.9,0.00303888]
[1769329230593,1.995,2944.9,2943.9,0.00303888]
[1769329230892,3.99821476,2944.8,2943.9,0.00303888]
[1769329231091,3.99821476,2944.7,2943.9,0.00303888]
[1769329231291,3.99821476,2944.6,2943.9,0.00303888]
[1769329231485,1.995,2944.9,2943.9,0.00303888]
[1769329231682,3.99785546,2944.8,2943.9,0.00303888]
[1769329231889,3.99785546,2944.7,2943.9,0.00303888]
[1769329232089,3.99785546,2944.6,2943.9,0.00303888]
[1769329232292,1.995,2944.9,2943.9,0.00303888]
[1769329232486,3.99789208,2944.8,2943.9,0.00303888]
[1769329232687,3.99789208,2944.7,2943.9,0.00303888]
[1769329232883,3.99789208,2944.6,2943.9,0.00303888]
[1769329233194,1.995,2944.9,2943.9,0.00303888]
[1769329233496,3.99794739,2944.8,2943.9,0.00303888]
[1769329233693,3.99794739,2944.7,2943.9,0.00303888]
[1769329233894,3.99794739,2944.6,2943.9,0.00303888]
[1769329234097,1.995,2944.9,2943.9,0.00303888]
[1769329234297,3.99794761,2944.8,2943.9,0.00303888]
[1769329234497,3.99794761,2944.7,2943.9,0.00303888]
[1769329234696,3.99794761,2944.6,2943.9,0.00303888]
[1769329234897,1.995,2944.9,2943.9,0.00303888]
[1769329235199,3.99799286,2944.8,2943.9,0.00303888]
[1769329235397,3.99799286,2944.7,2943.9,0.00303888]
[1769329235600,3.99799286,2944.6,2943.9,0.00303888]
[1769329235800,1.995,2944.9,2943.9,0.00303888]
[1769329236002,3.99809093,2944.8,2943.9,0.00303888]
[1769329236195,3.99809093,2944.7,2943.9,0.00303888]
[1769329236394,3.99809093,2944.6,2943.9,0.00303888]
[1769329236590,1.995,2944.9,2943.9,0.00303888]
[1769329236796,3.99822244,2944.8,2943.9,0.00303888]
[1769329237095,3.99822244,2944.7,2943.9,0.00303888]
[1769329237396,3.99822244,2944.6,2943.9,0.00303888]
[1769329237596,1.995,2944.9,2943.9,0.00303888]
[1769329260726,1.995,2944.9,2943.9,0.14532791]
[1769329263433,0.17004,2945.0,2943.9,0.14532791]
[1769329263736,1.995,2944.9,2943.9,0.14532791]
[1769329269934,4.00657925,2944.8,2943.9,0.14532791]
[1769329270133,4.00657925,2944.7,2943.9,0.14532791]
[1769329270333,4.00657925,2944.6,2943.9,0.14532791]
[1769329270533,4.00657925,2944.5,2943.9,0.14532791]
[1769329270734,1.995,2944.9,2943.9,0.14532791]
[1769329270926,4.00655745,2944.8,2943.9,0.14532791]
[1769329271126,4.00655745,2944.7,2943.9,0.14532791]
[1769329271328,4.00655745,2944.6,2943.9,0.14532791]
[1769329271632,4.00655745,2944.5,2943.9,0.14532791]
[1769329271933,1.995,2944.9,2943.9,0.14532791]
[1769329280838,1.995,2944.9,2944.0,0.78455213]
[1769329289851,1.995,2944.9,2943.6,0.78455213]
[1769329290762,1.995,2944.9,2943.6,0.78702428]
[1769329298276,1.995,2944.9,2943.8,0.78455213]
[1769329321595,1.995,2944.9,2944.0,0.78455213]
[1769329342920,1.995,2944.9,2943.7,0.13827741]
[1769329350533,9.51132647,2945.6,2944.0,0.14386163]
[1769329350829,1.995,2945.2,2944.0,0.14386163]
[1769329351917,0.17,2945.7,2944.0,0.14386163]
[1769329352120,1.995,2945.6,2944.0,0.14386163]
[1769329355326,1.995,2945.6,2944.3,0.78454673]
[1769329355527,1.995,2945.6,2944.4,0.15006593]
[1769329399961,1.995,2945.6,2944.7,0.78454673]
[1769329400162,1.995,2945.6,2944.7,0.92845383]
[1769329404866,1.995,2945.6,2945.0,0.78401028]
[1769329407960,5.394,2946.1,2945.0,0.78401028]
[1769329412162,5.394,2946.1,2944.8,0.78401028]
[1769329415070,1.994,2946.1,2944.8,0.78401028]
[1769329439501,1.994,2946.1,2944.8,0.92160956]
[1769329440395,1.994,2946.1,2944.9,0.13759928]
[1769329440597,1.994,2946.1,2945.1,0.78401028]
[1769329461007,0.00319897,2946.5,2945.5,0.78401028]
[1769329461214,1.994,2946.4,2945.5,0.78401028]
[1769329462411,1.994,2946.4,2945.5,0.92539346]
[1769329466916,1.994,2946.4,2945.5,0.14138318]
[1769329488723,0.26581807,2947.0,2945.5,0.14138318]
[1769329488927,0.16991,2947.2,2946.0,0.78372806]
[1769329489328,0.16991,2947.2,2945.9,0.14728797]
[1769329489924,0.17271703,2947.2,2945.9,0.15129439]
[1769329500628,0.26299653,2947.2,2945.9,0.00400642]
[1769329500833,0.08766345,2947.0,2945.2,0.14728797]
[1769329501833,0.08766345,2947.0,2945.2,0.15167774]
[1769329511437,0.25758345,2947.0,2945.2,0.15167774]
[1769329528951,0.78378286,2946.9,2945.5,0.13948041]
[1769329529147,1.993,2946.8,2945.5,0.13948041]
[1769329543260,0.78378286,2946.7,2945.5,0.13948041]
[1769329546365,0.78378286,2946.5,2945.5,0.13948041]
[1769329546665,0.78378286,2946.5,2945.2,0.14269998]
[1769329547969,0.78378286,2946.5,2945.2,0.92648284]
[1769329548974,0.78378286,2946.5,2945.3,0.13831021]
[1769329549272,0.78378286,2946.7,2945.3,0.13831021]
[1769329555075,0.86810732,2946.7,2945.3,0.13831021]
[1769329555276,0.86810732,2946.7,2945.2,0.78817263]
[1769329556777,0.86810732,2946.7,2945.2,0.92648284]
[1769329564579,0.78378286,2946.5,2945.2,0.92648284]
[1769329571081,0.78378286,2946.1,2945.2,0.14269998]
[1769329571383,2.77778286,2946.1,2945.2,0.14269998]
[1769329576886,1.994,2946.1,2945.2,0.14269998]
[1769329577487,1.994,2946.1,2945.2,0.00438977]
[1769329587188,2.2568484,2946.1,2944.7,0.14900534]
[1769329587385,0.78378286,2945.7,2944.7,0.14900534]
[1769329588293,0.95377286,2945.9,2944.7,0.15155094]
[1769329590899,0.16999,2945.9,2944.7,0.15155094]
[1769329595798,0.16999,2945.9,2944.7,0.0025456]
[1769329630119,0.16999,2945.8,2944.7,0.0025456]
[1769329633720,3.56999,2945.8,2944.7,0.0025456]
[1769329638919,0.17,2945.7,2944.7,0.0025456]
[1769329639116,0.17,2945.6,2944.7,0.0025456]
[1769329644825,0.17001,2945.5,2944.7,0.0025456]
[1769329645036,1.994,2945.4,2944.7,0.0025456]
[1769329652937,0.78460038,2945.3,2944.7,0.0025456]
[1769329653530,0.78460038,2945.1,2944.7,0.0025456]
[1769329653725,1.994,2945.4,2943.0,7.25160038]
[1769329653726,0.78460038,2944.9,2943.8,0.13898944]
[1769329654737,0.78822955,2944.9,2943.8,0.1428846]
[1769329688363,0.00362917,2944.9,2943.8,0.1428846]
[1769329688558,0.00362917,2944.9,2943.8,0.92748498]
[1769329690469,0.00362917,2944.9,2943.9,0.14749993]
[1769329746123,3.40462917,2944.9,2943.9,0.14749993]
[1769329758526,3.57466917,2944.9,2943.9,0.14749993]
[1769329758722,0.78467795,2944.7,2943.9,0.14749993]
[1769329758931,1.995,2944.6,2943.8,0.00389516]
[1769329764545,5.396,2944.6,2943.8,0.00389516]
[1769329772352,5.53825871,2944.6,2943.8,0.00389516]
[1769329774950,0.78507449,2944.3,2943.8,0.00389516]
[1769329777154,1.05409986,2944.3,2943.8,0.00389516]
[1769329786261,1.05409986,2944.3,2943.1,0.1436264]
[1769329787162,1.05409986,2944.3,2943.1,0.14690083]
[1769329788560,0.78507449,2944.1,2943.1,0.14690083]
[1769329788757,2.083,2944.0,2943.1,0.14690083]
[1769329824095,2.083,2944.0,2943.1,0.00327443]
[1769329840809,2.04899426,2944.0,2943.1,0.00327443]
[1769329860228,0.13683785,2943.9,2943.1,0.00327443]
[1769329860828,0.13683785,2943.9,2942.4,0.1435302]
[1769329861431,4.37461213,2943.8,2942.4,0.1435302]
[1769329861631,4.23777428,2943.7,2942.4,0.1435302]
[1769329861929,4.23777428,2943.7,2942.4,0.14777809]
[1769329862427,0.13683785,2943.6,2942.4,0.00424789]
[1769329862630,4.23777428,2943.5,2942.4,0.00424789]
[1769329862829,4.23777428,2943.4,2942.4,0.00424789]
[1769329863031,4.23777428,2943.3,2942.4,0.00424789]
[1769329863328,4.23777428,2943.2,2942.4,0.00424789]
[1769329863525,4.23777428,2943.1,2942.4,0.00424789]
[1769329863733,0.13683785,2943.6,2942.4,0.00424789]
[1769329864030,4.23457104,2943.5,2942.4,0.00424789]
[1769329864230,4.23457104,2943.4,2942.4,0.00424789]
[1769329864431,4.23457104,2943.3,2942.4,0.00424789]
[1769329864631,4.23457104,2943.2,2942.4,0.00424789]
[1769329864834,4.23457104,2943.1,2942.4,0.00424789]
[1769329865035,0.13683785,2943.6,2942.4,0.00424789]
[1769329865233,4.23290558,2943.5,2942.4,0.00424789]
[1769329865433,4.23290558,2943.4,2942.4,0.00424789]
[1769329865634,4.23290558,2943.3,2942.4,0.00424789]
[1769329865836,4.23290558,2943.2,2942.4,0.00424789]
[1769329866037,4.23290558,2943.1,2942.4,0.00424789]
[1769329866237,0.13683785,2943.6,2942.4,0.00424789]
[1769329866440,4.36664301,2943.5,2942.4,0.00424789]
[1769329866636,4.23085973,2943.4,2942.4,0.00424789]
[1769329866835,4.23085973,2943.3,2942.4,0.00424789]
[1769329867135,4.23085973,2943.2,2942.4,0.00424789]
[1769329867438,4.23085973,2943.1,2942.4,0.00424789]
[1769329867638,0.13578328,2943.5,2942.4,0.00424789]
[1769329867838,4.22991544,2943.4,2942.4,0.00424789]
[1769329868029,4.22991544,2943.3,2942.4,0.00424789]
[1769329868233,4.22991544,2943.2,2942.4,0.00424789]
[1769329868432,0.13578328,2943.5,2942.4,0.00424789]
[1769329868732,4.22932704,2943.4,2942.4,0.00424789]
[1769329869037,4.22932704,2943.3,2942.4,0.00424789]
[1769329869235,4.22932704,2943.2,2942.4,0.00424789]
[1769329869435,0.13578328,2943.5,2942.4,0.00424789]
[1769329869635,4.22851241,2943.4,2942.4,0.00424789]
[1769329869839,4.22851241,2943.3,2942.4,0.00424789]
[1769329870039,4.22851241,2943.2,2942.4,0.00424789]
[1769329870238,0.13578328,2943.5,2942.4,0.00424789]
[1769329870541,4.22805383,2943.4,2942.4,0.00424789]
[1769329870740,4.22805383,2943.3,2942.4,0.00424789]
[1769329870932,4.22805383,2943.2,2942.4,0.00424789]
[1769329871133,0.13578328,2943.5,2942.4,0.00424789]
[1769329871335,3.402,2944.1,2942.5,0.1477765]
[1769329871636,2.127,2944.0,2942.5,0.1477765]
[1769329875839,2.26662277,2944.0,2942.5,0.1477765]
[1769329876143,0.13962277,2943.9,2942.5,0.1477765]
[1769329896864,0.92490279,2943.9,2942.6,0.78528002]
[1769329908668,0.78528002,2943.7,2942.6,0.78528002]
[1769329908864,0.78528002,2943.7,2942.5,0.1477765]
[1769329909275,0.13962277,2943.9,2942.6,0.78528002]
[1769329909476,0.13962277,2943.9,2942.6,0.9223063]
[1769329909677,2.91228002,2944.0,2942.6,0.9223063]
[1769329909877,3.402,2944.1,2942.8,0.78528002]
[1769329909878,2.142,2943.9,2942.8,0.78528002]
[1769329916286,0.00509658,2943.6,2942.8,0.78528002]
[1769329922884,0.00509658,2943.6,2942.9,0.00509658]
[1769329991045,0.00509658,2943.6,2942.9,0.15342346]
[1769330005449,2.32409,2944.1,2942.9,0.15342346]
[1769330014559,2.154,2944.1,2942.9,0.15342346]
[1769330014747,2.154,2944.1,2943.0,0.14629838]
[1769330016865,2.154,2944.1,2943.4,0.78479361]
[1769330020566,0.95485361,2944.7,2943.5,0.14629838]
[1769330020761,2.161,2944.5,2943.5,0.14629838]
[1769330020963,2.161,2944.5,2943.6,0.78479361]
[1769330022264,2.161,2944.5,2943.5,0.14629838]
[1769330023068,2.94579361,2944.5,2943.2,0.78479361]
[1769330024368,2.94579361,2944.5,2943.2,0.93109199]
[1769330027564,0.14409018,2944.4,2942.9,0.00509658]
[1769330027772,2.161,2944.5,2942.9,0.00509658]
[1769330027773,0.92888379,2944.2,2942.9,0.00509658]
[1769330028072,0.92888379,2944.2,2943.0,0.78479361]
[1769330028558,0.14409018,2944.2,2943.0,0.78479361]
[1769330036575,0.78479361,2944.4,2943.0,0.78479361]
[1769330036978,0.78479361,2944.4,2943.0,0.93109199]
[1769330039076,0.14409018,2944.3,2942.9,0.00509658]
[1769330039266,0.14409018,2944.3,2942.9,0.78989019]
[1769330040577,0.78479361,2944.4,2943.0,0.14629838]
[1769330043186,0.14032182,2944.3,2943.0,0.14629838]
[1769330043484,0.78479361,2944.0,2942.9,0.00509658]
[1769330044688,0.92511543,2944.2,2942.9,0.00509658]
[1769330049890,0.92511543,2944.2,2942.9,0.78989019]
[1769330055187,0.14032182,2944.2,2942.9,0.92605581]
[1769330057189,0.95486361,2944.4,2942.9,0.92605581]
[1769330059190,1.09305875,2944.4,2942.9,0.92605581]
[1769330059392,1.09305875,2944.4,2943.1,0.78479361]
[1769330065688,2.152,2944.3,2943.1,0.78479361]
[1769330070298,2.152,2944.3,2943.1,0.92095923]
[1769330073306,2.93679361,2944.3,2943.1,0.13616562]
[1769330073507,3.08332583,2944.3,2942.9,0.78989019]
[1769330074607,0.78479361,2944.1,2942.9,0.78989019]
[1769330075403,0.78479361,2943.9,2942.9,0.00509658]
[1769330075600,0.78479361,2943.7,2942.9,0.00509658]
[1769330076908,2.30253222,2943.8,2942.9,0.00509658]
[1769330089007,2.156,2943.8,2942.9,0.00509658]
[1769330095015,0.14653222,2943.7,2942.9,0.00509658]
[1769330095218,0.14653222,2943.7,2942.4,0.00424789]
[1769330106630,0.31454144,2943.6,2942.4,0.00424789]
[1769330107130,0.14442144,2943.5,2942.4,0.00424789]
[1769330118243,0.31455144,2943.5,2942.4,0.00424789]
[1769330118444,2.153,2943.4,2942.4,0.00424789]
[1769330118743,2.153,2943.3,2942.4,0.00424789]
[1769330119247,0.17013,2943.5,2942.4,0.00424789]
[1769330119445,2.154,2943.4,2942.4,0.00424789]
[1769330120540,0.17013,2943.5,2942.4,0.14765136]
[1769330120735,2.154,2943.4,2942.4,0.14765136]
[1769330121243,0.17013,2943.5,2942.4,0.14765136]
[1769330121445,2.32413,2943.5,2942.4,0.14765136]
[1769330121646,6.24935134,2944.0,2942.4,0.14765136]
[1769330121845,2.154,2943.9,2942.4,0.14765136]
[1769330128854,2.29302487,2943.9,2942.4,0.14765136]
[1769330130955,0.13902487,2943.8,2942.4,0.14765136]
[1769330135153,0.13902487,2943.8,2942.4,0.00424789]
[1769330138856,0.9320356,2943.6,2942.4,0.00424789]
[1769330139360,0.14661812,2943.5,2942.4,0.00424789]
[1769330139560,2.204,2943.4,2942.4,0.00424789]
[1769330141160,2.35061812,2943.4,2942.4,0.00424789]
[1769330143962,2.35061812,2943.4,2942.4,0.78966537]
[1769330151665,2.35061812,2943.4,2942.4,0.00424789]
[1769330151865,0.14661812,2943.3,2942.4,0.00424789]
[1769330158672,2.204,2943.4,2942.4,0.00424789]
[1769330159369,2.204,2943.4,2942.5,0.78541748]
[1769330170282,2.204,2943.4,2942.4,0.00424789]
[1769330170283,0.14661812,2943.7,2942.7,0.78541748]
[1769330170484,0.14355638,2944.1,2943.1,0.78541748]
[1769330170784,2.218,2944.0,2943.1,0.78541748]
[1769330171785,2.218,2944.0,2942.9,0.78541748]
[1769330179197,2.35805158,2944.0,2942.9,0.78541748]
[1769330187203,0.14005158,2943.9,2942.7,0.78541748]
[1769330193909,2.218,2944.0,2942.9,0.78541748]
[1769330198915,2.218,2944.0,2942.7,0.14968354]
[1769330204213,6.42560409,2944.3,2942.9,0.14968354]
[1769330204413,2.239,2944.2,2942.9,0.14968354]
[1769330206816,0.17005,2944.8,2942.9,0.14968354]
[1769330207120,1.995,2944.7,2943.3,0.14968354]
[1769330221024,0.14519762,2944.6,2942.8,0.31984354]
[1769330222122,0.31527762,2944.4,2942.7,6.467]
[1769330222318,0.14519762,2944.3,2942.7,6.467]
[1769330222824,0.14519762,2944.3,2942.4,0.15393143]
[1769330223134,0.14980718,2944.2,2942.4,0.15393143]
[1769330223636,0.00509658,2943.6,2942.4,0.15393143]
[1769330256463,0.00509658,2943.6,2942.7,0.00509658]
[1769330261267,0.00509658,2943.6,2942.8,0.78522261]
[1769330269073,0.00509658,2943.6,2942.7,0.00509658]
[1769330280279,0.79031919,2943.6,2942.7,0.00509658]
[1769330282685,0.93382237,2943.6,2942.7,0.00509658]
[1769330283273,0.14248235,2943.5,2942.4,0.00424789]
[1769330283782,0.92770496,2943.4,2942.4,0.00424789]
[1769330289492,0.14248235,2943.4,2942.4,0.00424789]
[1769330293996,0.78522261,2943.2,2942.4,0.00424789]
[1769330294388,0.92770496,2943.4,2942.4,0.00424789]
[1769330296810,0.14546067,2943.3,2942.4,0.00424789]
[1769330300806,0.93068328,2943.2,2942.4,0.00424789]
[1769330308220,0.93068328,2943.2,2940.7,6.467]
[1769330308221,0.17016,2942.8,2938.8,16.88584724]
[1769330308418,0.17033,2940.0,2936.9,0.26642651]
[1769330308621,0.78522261,2938.7,2937.9,33.99600794]
[1769330308915,5.1131941,2938.6,2937.7,0.15065957]
[1769330309118,7.11337561,2938.6,2937.8,33.99600794]
[1769330309323,0.78522261,2938.4,2937.8,3.86623488]
[1769330309514,0.78522261,2938.4,2937.9,2.67899754]
[1769330309515,5.11442749,2938.3,2937.9,2.67899754]
[1769330309715,5.11442749,2938.3,2937.8,2.67899754]
[1769330309919,0.78522261,2938.1,2937.2,0.15064502]
[1769330310219,5.11442749,2938.0,2936.5,0.14953]
[1769330310414,0.78522261,2937.8,2936.7,0.14953]
[1769330310620,7.11042749,2937.7,2936.7,0.14953]
[1769330310821,0.78522261,2937.5,2936.7,34.14553794]
[1769330311018,5.11442749,2937.4,2936.7,34.148574]
[1769330311223,5.11442749,2937.3,2936.7,0.15256606]
[1769330311416,5.11442749,2937.2,2936.7,0.00303606]
[1769330311722,5.11442749,2937.1,2935.9,0.14953]
[1769330311918,5.11442749,2937.0,2935.9,0.14953]
[1769330312115,1.13572508,2936.8,2934.4,0.14953]
[1769330312315,0.05207874,2936.4,2934.4,0.14953]
[1769330312517,0.05207874,2935.8,2933.3,0.14953]
[1769330312719,1.13572508,2933.4,2933.3,0.00340073]
[1769330312917,5.37885261,2933.4,2930.8,1.13572508]
[1769330313217,5.12438263,2933.3,2932.4,0.1747519]
[1769330313425,5.12438263,2933.2,2931.9,0.1747519]
[1769330313724,5.12438263,2933.1,2932.0,0.1747519]
[1769330313925,5.12438263,2933.0,2932.0,0.1747519]
[1769330314219,5.12438263,2933.0,2932.1,33.99600794]
[1769330314416,0.00511518,2933.1,2932.3,34.18424141]
[1769330314619,0.00511518,2933.1,2932.3,0.18823347]
[1769330314828,0.27487914,2934.5,2932.8,0.18823347]
[1769330315022,10.52785593,2934.4,2932.8,0.18823347]
[1769330315213,10.52785593,2934.4,2931.6,0.1882298]
[1769330315214,1.13572508,2933.5,2931.6,0.1882298]
[1769330315420,1.13572508,2933.0,2931.5,1.09710932]
[1769330315624,1.13572508,2932.5,2930.6,0.1882298]
[1769330315821,5.12385593,2932.4,2930.6,0.1882298]
[1769330316129,7.27477802,2933.6,2929.6,3.407]
[1769330316130,1.998,2932.3,2930.8,0.18563812]
[1769330316426,1.13572508,2933.5,2930.8,0.18563812]
[1769330316427,40.8,2933.4,2930.8,0.18563812]
[1769330316625,5.12636011,2933.3,2931.0,0.18563812]
[1769330316823,2.266,2933.2,2931.4,0.18563812]
[1769330317327,2.266,2933.2,2930.9,0.18568266]
[1769330317328,1.13572508,2932.3,2930.9,0.18568266]
[1769330317628,1.13572508,2931.8,2930.8,0.00290088]
[1769330317931,40.8,2933.1,2930.8,0.18858354]
[1769330318123,1.999,2933.0,2931.4,0.18731904]
[1769330318322,0.00402731,2933.4,2931.4,33.99600794]
[1769330318524,0.00402731,2933.4,2931.0,1.13572508]
[1769330318725,0.00402731,2933.4,2931.8,33.99600794]
[1769330318925,0.00402731,2933.4,2931.6,1.999]
[1769330319124,1.13572508,2934.9,2932.0,1.13572508]
[1769330319422,0.27905681,2935.1,2932.2,0.00511518]
[1769330319423,0.1666539,2934.6,2932.2,0.00511518]
[1769330319627,5.409,2934.5,2932.2,0.00511518]
[1769330319828,5.409,2934.5,2932.2,34.00112312]
[1769330320222,5.41177627,2934.5,2932.2,34.0049758]
[1769330320524,0.00277627,2934.5,2932.3,0.17461334]
[1769330320731,0.00277627,2934.5,2932.5,0.17461334]
[1769330320938,5.41,2934.4,2932.5,0.17461334]
[1769330321225,0.00277627,2934.5,2932.5,0.17461334]
[1769330321527,0.00277627,2934.5,2933.2,0.17461334]
[1769330321732,0.00277627,2934.5,2933.4,33.99600794]
[1769330322126,0.00277627,2934.5,2933.5,33.99600794]
[1769330322322,0.00277627,2934.5,2933.4,34.17062128]
[1769330322624,0.17058,2935.6,2933.8,0.17461334]
[1769330322826,2.0,2935.1,2933.8,0.17461334]
[1769330323629,2.00404363,2935.1,2933.8,0.17461334]
[1769330323828,2.00404363,2935.1,2933.7,0.00511518]
[1769330324718,0.00404363,2935.1,2933.7,0.00511518]
[1769330324919,0.00404363,2935.1,2933.9,34.17062128]
[1769330325123,0.00404363,2935.1,2933.7,0.00511518]
[1769330325632,0.17069753,2935.1,2933.7,0.00511518]
[1769330325822,5.412,2935.0,2933.7,0.00511518]
[1769330326029,2.001,2934.9,2933.7,0.00511518]
[1769330326730,2.001,2934.8,2933.7,0.00511518]
[1769330327321,0.00404363,2935.1,2933.7,34.00112312]
[1769330327528,0.3371939,2936.3,2934.4,0.17461334]
[1769330327731,0.1666539,2936.1,2933.9,0.17461334]
[1769330327935,0.1666539,2936.1,2933.7,0.00511518]
[1769330327936,0.1666539,2935.6,2933.7,0.00511518]
[1769330328126,0.1666539,2935.4,2933.7,0.00511518]
[1769330328327,2.1676539,2935.3,2933.7,0.00511518]
[1769330328524,5.413,2935.2,2933.7,0.00953231]
[1769330328832,5.413,2935.1,2933.7,0.00953231]
[1769330329229,2.001,2935.0,2933.7,0.00953231]
[1769330329740,2.273,2934.9,2933.7,0.00953231]
[1769330330035,0.16996264,2935.3,2933.7,0.00953231]
[1769330330230,0.00330874,2935.3,2933.7,0.18414565]
[1769330330730,0.00330874,2935.3,2934.2,33.99600794]